bitfinex-derivatives/quotes_SOLF0:USTF0_20250529
["timestamp","ask_amount","ask_price","bid_price","bid_amount"]
[1748493506124,0.03878007,172.07,172.03,0.03743576]
[1748493506627,0.03878007,172.07,172.04,5.8108]
[1748493507235,0.03878007,172.07,172.05,5.8105]
[1748493508224,0.03878007,172.07,172.04,5.8108]
[1748493509734,0.03878007,172.07,172.05,5.8105]
[1748493510634,0.03878007,172.07,172.03,0.03743576]
[1748493511938,5.84888007,172.07,172.03,5.84833576]
[1748493512136,5.84888007,172.07,172.03,0.03743576]
[1748493513040,5.84888007,172.07,172.04,5.8109]
[1748493513241,0.03878007,172.07,172.04,5.8109]
[1748493513937,0.03878007,172.07,172.03,0.03743576]
[1748493514942,5.8105,172.06,172.03,0.03743576]
[1748493515850,5.8107,172.05,172.03,0.03743576]
[1748493516346,0.03878007,172.07,172.03,0.03743576]
[1748493517048,5.8103,172.06,172.03,0.03743576]
[1748493517352,0.03878007,172.07,172.03,0.03743576]
[1748493519535,0.03878007,172.07,172.05,5.8103]
[1748493519742,0.03878007,172.07,172.03,0.03743576]
[1748493522444,0.03878007,172.07,172.04,5.8108]
[1748493522641,0.03878007,172.07,172.03,0.03743576]
[1748493525749,0.03878007,172.07,172.05,5.8103]
[1748493528952,0.03878007,172.07,172.06,5.8102]
[1748493530254,1.8937,172.14,172.09,5.8089]
[1748493530957,5.8079,172.13,172.1,5.8089]
[1748493531253,5.8515532,172.13,172.1,0.04106406]
[1748493531846,0.0436532,172.13,172.1,0.04106406]
[1748493532247,0.0436532,172.13,172.1,5.84966406]
[1748493534349,0.0436532,172.13,172.12,5.8082]
[1748493537957,0.0436532,172.13,172.1,0.04106406]
[1748493538458,0.0436532,172.13,172.11,5.8085]
[1748493539162,0.0436532,172.13,172.1,0.04106406]
[1748493541260,0.0436532,172.13,172.11,5.8085]
[1748493542967,0.0436532,172.13,172.12,5.8082]
[1748493543263,0.0436532,172.13,172.1,0.04106406]
[1748493543662,0.0436532,172.13,172.11,5.8083]
[1748493544061,0.0436532,172.13,172.1,0.04106406]
[1748493544257,0.0436532,172.13,172.11,5.8085]
[1748493548762,0.0436532,172.13,172.1,0.04106406]
[1748493549059,0.0436532,172.13,172.11,5.8082]
[1748493549667,0.0436532,172.13,172.12,5.8082]
[1748493554971,0.29046,172.16,172.15,5.8072]
[1748493557895,0.29046,172.16,172.14,5.85024166]
[1748493558174,0.29046,172.16,172.14,0.04284166]
[1748493558672,0.29046,172.16,172.15,5.8072]
[1748493561675,0.29046,172.16,172.14,5.85024166]
[1748493562475,0.29046,172.16,172.15,5.8072]
[1748493569585,5.8425,172.22,172.15,40.04]
[1748493569586,3.9217,172.22,172.15,40.04]
[1748493570474,3.9217,172.22,172.14,0.04284166]
[1748493570475,0.04075191,172.2,172.14,0.04284166]
[1748493570675,5.8066,172.17,172.14,0.04284166]
[1748493571283,5.8066,172.17,172.14,5.85024166]
[1748493572188,5.8059,172.19,172.14,5.85024166]
[1748493572979,5.8059,172.19,172.15,5.8071]
[1748493573186,5.84625191,172.2,172.14,0.04284166]
[1748493573484,0.04075191,172.2,172.14,0.04284166]
[1748493574383,0.04075191,172.2,172.19,5.8058]
[1748493588902,3.7869,172.26,172.23,5.8044]
[1748493589300,3.7869,172.26,172.17,38.58]
[1748493589701,9.5905,172.26,172.22,5.8046]
[1748493589905,9.63440087,172.26,172.22,5.8446943]
[1748493591000,3.83080087,172.26,172.23,5.8044]
[1748493591501,3.83080087,172.26,172.24,5.8041]
[1748493591899,1.92560087,172.26,172.24,5.8041]
[1748493592401,1.92560087,172.26,172.25,5.8038]
[1748493592596,0.04390087,172.26,172.25,5.8038]
[1748493597798,0.04390087,172.26,172.22,38.6200943]
[1748493598407,0.04390087,172.26,172.25,5.8038]
[1748493599814,0.04390087,172.26,172.22,38.6200943]
[1748493600012,0.04390087,172.26,172.22,41.85455375]
[1748493600211,0.04390087,172.26,172.22,38.6200943]
[1748493600616,5.84740087,172.26,172.22,38.6200943]
[1748493600820,5.84740087,172.26,172.22,44.4246943]
[1748493601309,5.8042,172.24,172.22,0.0400943]
[1748493601812,5.8045,172.23,172.22,0.0400943]
[1748493602018,5.8045,172.23,172.13,3.9825]
[1748493602019,3.23445945,172.23,172.13,3.9825]
[1748493602227,3.23445945,172.23,172.14,540.12]
[1748493602516,5.8058,172.2,172.16,5.8068]
[1748493603022,0.04457229,172.2,172.16,0.038142]
[1748493604210,0.04457229,172.2,172.17,5.8062]
[1748493604412,0.04457229,172.2,172.16,0.038142]
[1748493605320,0.04457229,172.2,172.17,5.8062]
[1748493605715,0.04457229,172.2,172.16,0.038142]
[1748493608309,0.04457229,172.2,172.16,5.844642]
[1748493609119,5.85017229,172.2,172.16,5.844642]
[1748493609327,0.04457229,172.2,172.17,5.8064]
[1748493609726,5.85007229,172.2,172.16,0.038142]
[1748493610019,0.04457229,172.2,172.16,0.038142]
[1748493610622,0.04457229,172.2,172.17,5.8062]
[1748493611314,5.85007229,172.2,172.16,5.844842]
[1748493611722,0.04457229,172.2,172.16,5.844842]
[1748493612120,0.04457229,172.2,172.17,5.8064]
[1748493612326,0.04457229,172.2,172.16,0.038142]
[1748493614224,0.04457229,172.2,172.18,5.8059]
[1748493615226,0.04457229,172.2,172.16,0.038142]
[1748493615924,5.8059,172.19,172.16,0.038142]
[1748493617730,0.04457229,172.2,172.16,0.038142]
[1748493618042,38.46457229,172.2,172.09,38.42]
[1748493618226,5.8078,172.14,172.09,38.42]
[1748493619028,0.04135964,172.13,172.1,0.04275407]
[1748493619330,5.84925964,172.13,172.1,0.04275407]
[1748493620526,0.04135964,172.13,172.1,5.85125407]
[1748493621129,0.04135964,172.13,172.1,5.85155407]
[1748493621636,0.04135964,172.13,172.11,5.8085]
[1748493622026,0.04135964,172.13,172.1,0.04275407]
[1748493622226,0.04135964,172.13,172.1,5.85155407]
[1748493622531,0.04135964,172.13,172.1,0.04275407]
[1748493622733,0.04135964,172.13,172.11,5.8083]
[1748493622936,0.04135964,172.13,172.1,0.04275407]
[1748493623430,0.04135964,172.13,172.1,5.85145407]
[1748493624038,0.04135964,172.13,172.11,5.8084]
[1748493626035,0.04135964,172.13,172.12,5.8082]
[1748493626423,0.04135964,172.13,172.1,5.85155407]
[1748493626629,0.04135964,172.13,172.1,0.04275407]
[1748493627031,5.8085,172.11,172.1,0.04275407]
[1748493627442,5.1002939,172.13,172.01,40.3979]
[1748493627734,5.81,172.07,172.01,38.44]
[1748493628326,5.8093,172.09,172.03,5.8112]
[1748493628534,0.04207302,172.08,172.04,0.0370184]
[1748493629637,0.04207302,172.08,172.07,5.8098]
[1748493631238,0.04207302,172.08,172.04,0.0370184]
[1748493631643,0.04207302,172.08,172.06,5.8101]
[1748493632040,0.04207302,172.08,172.04,0.0370184]
[1748493632236,0.04207302,172.08,172.06,5.81]
[1748493632439,0.04207302,172.08,172.04,0.0370184]
[1748493633339,5.8101,172.07,172.04,0.0370184]
[1748493633536,0.04207302,172.08,172.04,0.0370184]
[1748493633939,5.85167302,172.08,172.04,0.0370184]
[1748493634747,0.04207302,172.08,172.04,0.0370184]
[1748493634946,0.04207302,172.08,172.04,5.8478184]
[1748493635345,0.04207302,172.08,172.04,0.0370184]
[1748493635847,5.8105,172.06,172.04,0.0370184]
[1748493636034,0.04207302,172.08,172.04,0.0370184]
[1748493636348,5.8101,172.07,172.04,0.0370184]
[1748493636845,0.04207302,172.08,172.04,0.0370184]
[1748493637738,5.8101,172.07,172.04,0.0370184]
[1748493638448,0.04207302,172.08,172.04,0.0370184]
[1748493639951,0.04207302,172.08,172.06,5.81]
[1748493640145,0.04207302,172.08,172.04,0.0370184]
[1748493641549,5.8099,172.07,172.04,0.0370184]
[1748493642051,0.04207302,172.08,172.04,0.0370184]
[1748493642848,5.8099,172.07,172.04,0.0370184]
[1748493643054,0.04207302,172.08,172.04,0.0370184]
[1748493643259,5.8105,172.05,172.04,0.0370184]
[1748493645153,47.4305,172.05,172.04,0.0370184]
[1748493645851,41.62,172.05,172.04,0.0370184]
[1748493646149,0.04207302,172.08,172.04,0.0370184]
[1748493647653,0.04207302,172.08,172.05,5.8104]
[1748493648048,0.04207302,172.08,172.04,0.0370184]
[1748493648256,0.04207302,172.08,172.04,5.8478184]
[1748493648754,0.04207302,172.08,172.04,0.0370184]
[1748493648955,0.04207302,172.08,172.05,5.8104]
[1748493649755,0.04207302,172.08,172.04,5.8478184]
[1748493650362,5.85167302,172.08,172.04,0.0370184]
[1748493651064,5.8099,172.07,172.04,0.0370184]
[1748493651466,0.04207302,172.08,172.04,0.0370184]
[1748493651668,5.8099,172.07,172.04,0.0370184]
[1748493651866,0.04207302,172.08,172.04,0.0370184]
[1748493652862,5.85187302,172.08,172.04,0.0370184]
[1748493653069,0.04207302,172.08,172.04,0.0370184]
[1748493653469,5.85157302,172.08,172.04,0.0370184]
[1748493653860,5.8099,172.07,172.04,0.0370184]
[1748493654475,0.04207302,172.08,172.04,0.0370184]
[1748493655669,5.8105,172.05,172.04,0.0370184]
[1748493655862,0.04207302,172.08,171.98,5.8126]
[1748493656172,5.8115,172.03,171.99,5.8124]
[1748493656367,5.05893426,172.09,171.97,1.9804]
[1748493656765,0.04337376,172.05,172.01,0.04013726]
[1748493657468,5.8112,172.04,172.01,0.04013726]
[1748493657892,0.04337376,172.05,172.01,0.04013726]
[1748493660176,5.8115,172.02,172.01,0.04013726]
[1748493660768,44.82,172.04,171.92,3.8714]
[1748493660992,48.6824,172.04,171.91,43.3]
[1748493661175,48.6824,172.04,171.91,5.815]
[1748493661176,50.6397,172.04,171.91,5.815]
[1748493661376,5.05893426,172.03,171.9,1.9188]
[1748493661592,50.6397,172.04,171.9,1.9188]
[1748493661765,5.8139,171.95,171.9,7.7341]
[1748493662082,0.03784047,171.94,171.91,0.03776444]
[1748493662277,0.04244182,171.94,171.91,0.03976486]
[1748493662771,0.04244182,171.94,171.91,5.85486486]
[1748493662976,0.04244182,171.94,171.91,0.03976486]
[1748493664974,0.04244182,171.94,171.92,5.8146]
[1748493665365,0.04244182,171.94,171.92,5.8149]
[1748493665778,0.04244182,171.94,171.91,0.03976486]
[1748493667774,0.04244182,171.94,171.92,5.8149]
[1748493668080,0.04244182,171.94,171.91,0.03976486]
[1748493668580,0.04244182,171.94,171.93,5.8146]
[1748493669374,0.04244182,171.94,171.91,5.85466486]
[1748493670981,5.8147,171.93,171.91,0.03976486]
[1748493671179,0.04244182,171.94,171.91,0.03976486]
[1748493673578,0.04244182,171.94,171.93,5.8146]
[1748493675986,0.04244182,171.94,171.92,2.0606]
[1748493676886,0.04244182,171.94,171.91,0.03976486]
[1748493677587,0.04244182,171.94,171.92,5.8146]
[1748493678589,0.04244182,171.94,171.91,0.03976486]
[1748493679481,0.04244182,171.94,171.91,5.85466486]
[1748493679686,0.04244182,171.94,171.91,0.03976486]
[1748493680595,0.04244182,171.94,171.92,5.8149]
[1748493680898,0.04244182,171.94,171.91,0.03976486]
[1748493681293,0.04244182,171.94,171.93,5.8146]
[1748493681492,0.04244182,171.94,171.91,0.03976486]
[1748493682887,5.8149,171.92,171.91,0.03976486]
[1748493683395,2.014,171.93,171.88,4.92639418]
[1748493683900,2.014,171.93,171.88,4.63151677]
[1748493684093,2.014,171.93,171.88,10.44771677]
[1748493684290,2.014,171.93,171.88,4.63151677]
[1748493684897,5.8159,171.89,171.88,4.63151677]
[1748493685492,0.04003008,171.9,171.88,4.63151677]
[1748493687294,5.8159,171.89,171.88,4.59175191]
[1748493687493,55.88,171.89,171.76,3.8415]
[1748493687691,0.0409583,171.84,171.76,3.8415]
[1748493688112,0.0409583,171.84,171.73,50.06]
[1748493688113,50.06,171.83,171.63,61.709]
[1748493688287,50.06,171.83,171.68,1.9096]
[1748493688288,0.04064822,171.75,171.68,1.9096]
[1748493688491,0.04064822,171.75,171.73,5.8212]
[1748493689103,0.04064822,171.75,171.74,5.821]
[1748493690301,0.04064822,171.75,171.68,53.7096]
[1748493691405,0.04064822,171.75,171.74,5.821]
[1748493693894,0.04064822,171.75,171.68,1.9096]
[1748493694498,0.04064822,171.75,171.64,4.0822]
[1748493694699,0.04247233,171.71,171.65,2.0483]
[1748493694900,7.233e-05,171.71,171.7,5.8223]
[1748493698208,7.233e-05,171.71,171.69,0.03910944]
[1748493698802,7.233e-05,171.71,171.69,5.86090944]
[1748493699005,7.233e-05,171.71,171.69,0.03910944]
[1748493699999,7.233e-05,171.71,171.69,5.86110944]
[1748493700803,7.233e-05,171.71,171.7,5.8217]
[1748493714112,3.7995,171.8,171.69,0.03910944]
[1748493714316,3.7995,171.8,171.66,5.08415024]
[1748493714504,5.819,171.79,171.66,5.08415024]
[1748493714909,3.7995,171.8,171.66,5.08415024]
[1748493715111,0.04284212,171.75,171.71,0.04270293]
[1748493717514,5.8207,171.74,171.71,0.04270293]
[1748493718108,5.8208,171.73,171.71,0.04270293]
[1748493718508,0.04284212,171.75,171.71,0.04270293]
[1748493718714,5.8204,171.74,171.71,0.04270293]
[1748493719218,5.86294212,171.75,171.71,0.04270293]
[1748493719912,0.04284212,171.75,171.71,5.86400293]
[1748493720321,0.04284212,171.75,171.71,0.04270293]
[1748493720515,0.04284212,171.75,171.73,5.8205]
[1748493720720,0.04284212,171.75,171.71,0.04270293]
[1748493720950,0.04284212,171.75,171.71,2.07100293]
[1748493721118,0.04284212,171.75,171.74,5.8204]
[1748493721525,2.0626,171.84,171.73,5.08415024]
[1748493721826,57.1401,171.86,171.73,5.08415024]
[1748493722017,57.1401,171.86,171.79,5.8185]
[1748493722412,57.1401,171.86,171.72,2.0392]
[1748493722623,5.85904983,171.82,171.78,0.04364874]
[1748493722819,0.04124983,171.82,171.78,0.04364874]
[1748493724148,57.2225,171.92,171.79,5.08415024]
[1748493724421,5.8156,171.89,171.79,8.99675024]
[1748493724628,5.8156,171.89,171.79,11.07105024]
[1748493724939,5.8147,171.91,171.85,5.8164]
[1748493725131,0.03705648,171.9,171.86,0.04164801]
[1748493726016,0.03705648,171.9,171.87,5.8157]
[1748493726926,0.03705648,171.9,171.86,0.04164801]
[1748493727338,0.03705648,171.9,171.87,5.8157]
[1748493727521,0.03705648,171.9,171.86,0.04164801]
[1748493728921,5.85205648,171.9,171.86,0.04164801]
[1748493729127,0.03705648,171.9,171.86,0.04164801]
[1748493730236,5.85205648,171.9,171.86,0.04164801]
[1748493730431,0.03705648,171.9,171.86,0.04164801]
[1748493731425,5.816,171.87,171.86,0.04164801]
[1748493734827,7.8696,171.87,171.86,0.00039818]
[1748493735030,5.8181,171.81,171.78,53.52]
[1748493735232,2.0536,171.87,171.78,53.52]
[1748493735430,2.0536,171.87,171.78,59.339]
[1748493735629,5.818,171.82,171.78,53.52]
[1748493736130,0.04151328,171.82,171.78,0.03669822]
[1748493737332,5.85951328,171.82,171.78,5.85569822]
[1748493738524,0.04151328,171.82,171.78,0.03669822]
[1748493739024,5.85951328,171.82,171.78,0.03669822]
[1748493739233,0.04151328,171.82,171.78,0.03669822]
[1748493740136,0.04151328,171.82,171.78,5.85549822]
[1748493740826,0.04151328,171.82,171.78,0.03669822]
[1748493741034,0.04151328,171.82,171.79,5.8187]
[1748493741234,0.04151328,171.82,171.78,0.03669822]
[1748493741733,5.85941328,171.82,171.78,0.03669822]
[1748493742945,0.04151328,171.82,171.78,0.03669822]
[1748493743138,0.04151328,171.82,171.65,51.96]
[1748493743440,5.8196,171.77,171.72,5.8211]
[1748493744036,0.03751328,171.76,171.73,0.04020904]
[1748493744339,0.03751328,171.76,171.73,5.86090904]
[1748493744643,0.03751328,171.76,171.73,0.04020904]
[1748493745232,0.03751328,171.76,171.74,5.8204]
[1748493745440,0.03751328,171.76,171.73,0.04020904]
[1748493745829,0.03751328,171.76,171.75,5.8201]
[1748493747042,0.03751328,171.76,171.73,0.04020904]
[1748493747937,5.85761328,171.76,171.73,0.04020904]
[1748493748145,0.03751328,171.76,171.73,0.04020904]
[1748493748938,5.8201,171.75,171.73,0.04020904]
[1748493749144,0.03751328,171.76,171.73,0.04020904]
[1748493749536,5.85751328,171.76,171.73,0.04020904]
[1748493749739,0.03751328,171.76,171.73,0.04020904]
[1748493751230,0.03751328,171.76,171.74,5.8204]
[1748493751544,0.03751328,171.76,171.73,0.04020904]
[1748493751932,0.03751328,171.76,171.75,5.8201]
[1748493753344,0.03751328,171.76,171.73,0.04020904]
[1748493755241,0.03751328,171.76,171.65,50.38]
[1748493755441,5.8211,171.72,171.65,50.38]
[1748493755642,2.0393,171.8,171.65,50.38]
[1748493756241,0.03661501,171.74,171.71,0.02523774]
[1748493757240,5.85731501,171.74,171.71,0.02523774]
[1748493758444,0.03661501,171.74,171.71,0.02523774]
[1748493758942,5.821,171.73,171.71,0.02523774]
[1748493759155,0.03661501,171.74,171.71,0.02523774]
[1748493759650,5.8211,171.73,171.71,0.02523774]
[1748493759844,0.03661501,171.74,171.71,0.02523774]
[1748493760044,5.8211,171.73,171.71,0.02523774]
[1748493760747,5.8211,171.72,171.71,0.02523774]
[1748493762451,0.03661501,171.74,171.71,0.02523774]
[1748493763343,0.03661501,171.74,171.71,5.84653774]
[1748493763860,5.85711501,171.74,171.71,5.84653774]
[1748493764444,0.03661501,171.74,171.71,5.84653774]
[1748493766252,0.03661501,171.74,171.71,0.02523774]
[1748493766949,0.03661501,171.74,171.71,5.84653774]
[1748493767346,0.03661501,171.74,171.71,0.02523774]
[1748493768248,0.03661501,171.74,171.71,48.88523774]
[1748493768456,0.03661501,171.74,171.73,5.8207]
[1748493768754,5.8185,171.8,171.71,48.88523774]
[1748493768949,5.8185,171.8,171.75,5.8198]
[1748493769146,5.8185,171.8,171.71,48.86]
[1748493769349,5.8182,171.81,171.71,48.86]
[1748493769553,5.8182,171.81,171.77,5.8192]
[1748493769746,0.04370655,171.78,171.77,5.8192]
[1748493770745,0.04370655,171.78,171.76,5.8196]
[1748493770946,0.04370655,171.78,171.74,0.03799141]
[1748493771746,0.04370655,171.78,171.77,5.8194]
[1748493772948,5.817,171.84,171.8,5.8181]
[1748493773448,1.9017,171.85,171.77,48.84]
[1748493773652,7.7187,171.85,171.77,48.84]
[1748493773951,7.7187,171.85,171.79,0.04244672]
[1748493774153,0.04025121,171.83,171.79,0.04244672]
[1748493774952,0.04025121,171.83,171.81,5.818]
[1748493775349,0.04025121,171.83,171.79,0.04244672]
[1748493775657,0.04025121,171.83,171.82,5.8177]
[1748493781648,0.04025121,171.83,171.8,5.8181]
[1748493781848,0.04025121,171.83,171.79,0.04244672]
[1748493782648,0.04025121,171.83,171.8,5.8181]
[1748493783049,0.04025121,171.83,171.79,0.04244672]
[1748493783246,0.04025121,171.83,171.82,5.8177]
[1748493784654,5.8166,171.86,171.82,5.8177]
[1748493784860,3.8709,171.99,171.85,5.08367909]
[1748493785065,3.8709,171.99,171.89,5.08367909]
[1748493785362,3.8709,171.99,171.86,4.0984]
[1748493785657,0.03793442,171.94,171.91,0.03895081]
[1748493786257,5.814,171.93,171.91,0.03895081]
[1748493786462,0.03793442,171.94,171.91,0.03895081]
[1748493786962,5.8143,171.92,171.91,0.03895081]
[1748493788362,5.82,171.92,171.76,52.38367909]
[1748493788564,1.9384,171.91,171.76,52.38367909]
[1748493788764,5.8164,171.86,171.76,52.38367909]
[1748493788962,47.3,171.9,171.76,52.38367909]
[1748493789162,0.04059301,171.85,171.81,0.0407689]
[1748493790260,5.85749301,171.85,171.81,5.8585689]
[1748493790462,0.04059301,171.85,171.81,0.0407689]
[1748493790863,0.04059301,171.85,171.82,5.8176]
[1748493791069,0.04059301,171.85,171.81,0.0407689]
[1748493791568,5.85759301,171.85,171.81,5.8587689]
[1748493791975,5.8171,171.84,171.81,0.0407689]
[1748493792160,0.04059301,171.85,171.81,0.0407689]
[1748493793084,0.04059301,171.85,171.84,5.817]
[1748493798474,5.814,171.93,171.84,5.08367909]
[1748493799071,9.7279,171.94,171.84,5.08367909]
[1748493799276,7.7196,171.94,171.84,5.08367909]
[1748493799573,0.03911805,171.91,171.87,0.04376393]
[1748493799778,0.03911805,171.91,171.89,5.815]
[1748493800675,0.03911805,171.91,171.87,0.04376393]
[1748493801180,5.85381805,171.91,171.87,5.85966393]
[1748493801380,0.03911805,171.91,171.87,5.85966393]
[1748493801773,5.85381805,171.91,171.87,5.85966393]
[1748493801978,0.03911805,171.91,171.87,5.85966393]
[1748493802176,0.03911805,171.91,171.87,0.04376393]
[1748493802777,0.03911805,171.91,171.88,5.8154]
[1748493802975,0.03911805,171.91,171.87,0.04376393]
[1748493803871,0.03911805,171.91,171.89,5.8152]
[1748493805074,0.03911805,171.91,171.88,5.8156]
[1748493805276,0.03911805,171.91,171.87,0.04376393]
[1748493805676,5.8152,171.9,171.87,0.04376393]
[1748493806674,5.85381805,171.91,171.87,5.85946393]
[1748493806879,0.03911805,171.91,171.87,5.85946393]
[1748493807080,5.815,171.9,171.87,0.04376393]
[1748493807583,5.8151,171.9,171.87,0.04376393]
[1748493808278,0.03911805,171.91,171.87,0.04376393]
[1748493809584,0.03911805,171.91,171.88,5.8154]
[1748493809784,0.03911805,171.91,171.87,0.04376393]
[1748493810083,5.85391805,171.91,171.87,5.85966393]
[1748493811388,0.03911805,171.91,171.87,0.04376393]
[1748493811786,5.8153,171.9,171.87,0.04376393]
[1748493811991,0.03911805,171.91,171.87,0.04376393]
[1748493812485,5.8152,171.9,171.87,0.04376393]
[1748493812996,5.8152,171.9,171.87,5.85976393]
[1748493813189,5.85381805,171.91,171.87,5.85976393]
[1748493813576,0.03911805,171.91,171.88,5.8157]
[1748493813788,0.03911805,171.91,171.87,0.04376393]
[1748493814386,5.815,171.9,171.87,0.04376393]
[1748493816287,5.85391805,171.91,171.87,5.85976393]
[1748493816592,0.03911805,171.91,171.87,0.04376393]
[1748493817590,0.03911805,171.91,171.88,5.8154]
[1748493817981,0.03911805,171.91,171.87,0.04376393]
[1748493819283,0.03911805,171.91,171.89,5.815]
[1748493819994,0.03911805,171.91,171.9,5.815]
[1748493821595,0.03911805,171.91,171.87,0.04376393]
[1748493821891,5.8152,171.9,171.87,0.04376393]
[1748493822101,0.03911805,171.91,171.87,0.04376393]
[1748493823506,0.03911805,171.91,171.88,5.8154]
[1748493823894,0.03911805,171.91,171.87,0.04376393]
[1748493824089,0.03911805,171.91,171.87,5.85966393]
[1748493824294,5.85391805,171.91,171.87,5.85966393]
[1748493824698,5.8157,171.88,171.87,0.04376393]
[1748493824892,0.03911805,171.91,171.78,42.76]
[1748493824893,46.7276,171.9,171.78,42.76]
[1748493825205,46.7276,171.9,171.81,5.8178]
[1748493825393,46.7276,171.9,171.78,42.76]
[1748493825798,0.04116937,171.86,171.83,5.8173]
[1748493826303,0.04116937,171.86,171.82,0.04021603]
[1748493826699,0.04116937,171.86,171.83,5.8171]
[1748493827494,0.04116937,171.86,171.82,0.04021603]
[1748493830604,0.04116937,171.86,171.84,5.8167]
[1748493830800,0.04116937,171.86,171.82,0.04021603]
[1748493831699,0.04116937,171.86,171.85,5.8167]
[1748493832899,0.04116937,171.86,171.83,5.8173]
[1748493833904,0.04116937,171.86,171.84,5.8169]
[1748493834719,0.04116937,171.86,171.83,5.8172]
[1748493835007,0.04116937,171.86,171.82,0.04021603]
[1748493836806,0.04116937,171.86,171.83,5.8171]
[1748493839905,0.04116937,171.86,171.82,0.04021603]
[1748493841408,5.8174,171.83,171.82,0.04021603]
[1748493841798,42.76,171.85,171.74,42.76]
[1748493842307,5.8181,171.81,171.76,5.8195]
[1748493842502,42.76,171.85,171.74,42.76]
[1748493842813,0.0423545,171.81,171.79,5.8187]
[1748493843008,0.0423545,171.81,171.78,0.04152672]
[1748493843405,0.0423545,171.81,171.8,5.8184]
[1748493845114,5.8161,171.87,171.83,5.8173]
[1748493845716,5.8161,171.87,171.78,1.9617]
[1748493845717,5.8161,171.87,171.82,5.8176]
[1748493846116,0.03892053,171.86,171.83,0.04043157]
[1748493847519,0.03892053,171.86,171.83,5.85773157]
[1748493848922,0.03892053,171.86,171.84,5.817]
[1748493849932,0.03892053,171.86,171.83,5.85773157]
[1748493850830,0.03892053,171.86,171.83,0.04043157]
[1748493851631,5.817,171.84,171.83,0.04043157]
[1748493853332,0.03892053,171.86,171.83,0.04043157]
[1748493853732,0.03892053,171.86,171.83,5.85753157]
[1748493855228,0.03892053,171.86,171.84,5.817]
[1748493856733,0.03892053,171.86,171.83,5.85783157]
[1748493856932,0.03892053,171.86,171.83,0.04043157]
[1748493857630,0.03892053,171.86,171.83,5.85773157]
[1748493857929,0.03892053,171.86,171.83,0.04043157]
[1748493858139,0.03892053,171.86,171.84,5.8167]
[1748493858936,0.03892053,171.86,171.85,5.8167]
[1748493859331,5.85522053,171.86,171.83,0.04043157]
[1748493859739,0.03892053,171.86,171.83,0.04043157]
[1748493861735,0.03892053,171.86,171.83,5.12411066]
[1748493862032,0.03892053,171.86,171.85,5.8167]
[1748493866638,41.28,171.93,171.89,5.8153]
[1748493866836,41.28,171.93,171.83,5.12411066]
[1748493866837,41.28,171.93,171.84,1.9442]
[1748493867141,41.28,171.93,171.81,2.0237]
[1748493867739,5.816,171.88,171.85,0.04378104]
[1748493867943,0.04011913,171.89,171.85,0.04378104]
[1748493868134,5.8163,171.86,171.85,0.04378104]
[1748493870838,5.8163,171.86,171.64,502.56]
[1748493871050,41.26,171.86,171.64,548.4]
[1748493871350,5.08367909,171.83,171.65,1.8788]
[1748493871603,5.8201,171.75,171.68,5.8224]
[1748493872039,0.03905707,171.73,171.7,0.03941116]
[1748493873737,5.85975707,171.73,171.7,0.03941116]
[1748493874244,0.03905707,171.73,171.7,0.03941116]
[1748493876040,0.03905707,171.73,171.7,5.86101116]
[1748493876250,0.03905707,171.73,171.7,0.03941116]
[1748493876643,5.8184,171.8,171.71,5.08367909]
[1748493876849,1.8746,171.82,171.65,1.8788]
[1748493877043,1.8746,171.82,171.69,5.08367909]
[1748493877244,1.8746,171.82,171.73,5.8204]
[1748493877245,5.8184,171.8,171.73,5.8204]
[1748493877447,1.8746,171.82,171.73,5.8204]
[1748493877749,0.04102523,171.79,171.76,0.04108781]
[1748493880052,5.85972523,171.79,171.76,0.04108781]
[1748493880246,0.04102523,171.79,171.76,0.04108781]
[1748493884052,0.04102523,171.79,171.78,5.819]
[1748493888153,55.591,171.85,171.76,0.04108781]
[1748493888154,45.86,171.85,171.8,5.8181]
[1748493889258,0.03866633,171.84,171.81,0.03920247]
[1748493889463,0.04029244,171.84,171.81,0.04225825]
[1748493890157,0.04029244,171.84,171.81,5.86025825]
[1748493890858,0.04029244,171.84,171.82,5.8176]
[1748493892565,0.04029244,171.84,171.81,5.86015825]
[1748493892764,0.04029244,171.84,171.81,0.04225825]
[1748493894766,0.04029244,171.84,171.83,5.8173]
[1748493894969,45.86,171.9,171.81,0.04225825]
[1748493895357,45.86,171.9,171.86,5.8161]
[1748493895767,2.0152,171.91,171.86,5.8161]
[1748493895968,0.03673236,171.9,171.87,0.0384283]
[1748493896862,0.03673236,171.9,171.87,5.8544283]
[1748493897370,0.03673236,171.9,171.87,0.0384283]